[Event "26th Hit Open-A 2022"]
[Site "Nova Gorica"]
[Date "2022.09.19"]
[Round "6.29"]
[White "Budai, Leonardo"]
[Black "Saypuri Srithan"]
[Result "1/2-1/2"]
[ECO "C42"]
[WhiteElo "1676"]
[BlackElo "2199"]
[Annotator "RC"]
[PlyCount "107"]
[EventDate "2022.09.16"]
[EventType "swiss"]
[EventCountry "SLO"]
[SourceTitle "playchess.com"]
[Source "ChessBase"]
[SourceQuality "1"]
[TimeControl "5400+30"]

1. e4 {[%emt 0:00:24]} e5 {[%emt 0:00:19]} 2. Nf3 {[%emt 0:00:18]} Nf6 {[%emt 0:00:04]} 3. Nc3 {[%emt 0:01:04]} Bb4 {[%emt 0:00:05]} 4. Bc4 {[%emt 0:00:45]} Bxc3 {[%emt 0:00:15]} 5. dxc3 {[%emt 0:00:28]} d6 {[%emt 0:00:07]} 6. Bg5 {[%emt 0:03:29]} h6 {[%emt 0:00:54]} 7. Bxf6 {[%emt 0:00:46]} Qxf6 {[%emt 0:00:50]} 8. h3 {[%emt 0:04:52]} a6 {[%emt 0:07:20]} 9. a3 {[%emt 0:02:36]} Nc6 {[%emt 0:01:31]} 10. Qe2 {[%emt 0:06:14]} Ne7 {[%emt 0:04:57]} 11. O-O-O {[%emt 0:05:39]} Be6 {[%emt 0:06:16]} 12. Bxe6 {[%emt 0:00:56]} Qxe6 {[%emt 0:00:38]} 13. Kb1 {[%emt 0:01:42]} O-O-O {[%emt 0:04:53]} 14. Nd2 {[%emt 0:10:42]} Ng6 {[%emt 0:13:45]} 15. g3 {[%emt 0:08:58]} f5 {[%emt 0:06:44]} 16. Nb3 {[%emt 0:12:10]} Rhf8 {[%emt 0:04:43]} 17. Rd2 {[%emt 0:08:14]} Ne7 {[%emt 0:11:26]} 18. exf5 {[%emt 0:05:58]} Qxf5 {[%emt 0:02:25]} 19. h4 {[%emt 0:01:01]} Qf3 {[%emt 0:03:39]} 20. Qxf3 {[%emt 0:02:10]} Rxf3 {[%emt 0:00:06]} 21. Re1 {[%emt 0:00:15]} Rdf8 {[%emt 0:01:24]} 22. Ree2 {[%emt 0:00:18]} Ng8 {[%emt 0:00:32]} 23. Nc1 {[%emt 0:02:22]} Nf6 {[%emt 0:01:27]} 24. c4 {[%emt 0:02:01]} Ng4 {[%emt 0:11:48]} 25. Nd3 {[%emt 0:03:00]} b6 {[%emt 0:01:15]} 26. a4 {[%emt 0:00:35]} a5 {[%emt 0:00:42]} 27. b3 {[%emt 0:01:10]} Kb7 {[%emt 0:02:28]} 28. Kc1 {[%emt 0:02:52]} g5 {[%emt 0:01:40]} 29. hxg5 {[%emt 0:00:16]} hxg5 {[%emt 0:00:03]} 30. Kd1 {[%emt 0:00:34]} Rh8 {[%emt 0:00:25]} 31. Kc1 {[%emt 0:00:36]} Rh2 {[%emt 0:02:57]} 32. Kb1 {[%emt 0:00:46]} Rf7 {[%emt 0:00:34]} 33. Ka2 {[%emt 0:04:33]} Rh1 {[%emt 0:01:24]} 34. Kb2 {[%emt 0:00:16]} Rf1 {[%emt 0:00:37]} 35. Ka2 {[%emt 0:00:20]} Kc6 {[%emt 0:02:27]} 36. Kb2 {[%emt 0:01:20]} Rf8 {[%emt 0:00:44]} 37. Ka2 {[%emt 0:00:25]} Rh8 {[%emt 0:01:15]} 38. Kb2 {[%emt 0:00:23]} Rhh1 {[%emt 0:01:06]} 39. Kc3 {[%emt 0:02:17]} Nf6 {[%emt 0:00:08]} 40. b4 {[%emt 0:04:55]} e4 {[%emt 0:01:28]} 41. b5+ {[%emt 0:00:17]} Kb7 {[%emt 0:01:12]} 42. Nb2 {[%emt 0:00:11]} Kc8 {[%emt 0:00:52]} 43. Kd4 {[%emt 0:00:41]} Kd7 {[%emt 0:00:51]} 44. c3 {[%emt 0:00:57]} Ke6 {[%emt 0:00:37]} 45. Rc2 {[%emt 0:01:16]} Kf5 {[%emt 0:00:54]} 46. Rcd2 {[%emt 0:00:52]} Rhg1 {[%emt 0:00:41]} 47. Rc2 {[%emt 0:00:16]} Rh1 {[%emt 0:00:47]} 48. Rcd2 {[%emt 0:00:16]} Rb1 {[%emt 0:00:54]} 49. Rc2 {[%emt 0:00:16]} Ra1 {[%emt 0:00:47]} 50. Rcd2 {[%emt 0:00:26]} Raf1 {[%emt 0:00:31]} 51. Rc2 {[%emt 0:00:12]} Ke6 {[%emt 0:00:52]} 52. Rcd2 {[%emt 0:00:10]} Kd7 {[%emt 0:00:20]} 53. Rc2 {[%emt 0:01:42]} Ra1 {[%emt 0:00:51]} 54. Rcd2 {[%emt 0:00:22]} 1/2-1/2

[Event "26th Hit Open-A 2022"]
[Site "Nova Gorica"]
[Date "2022.09.19"]
[Round "6.30"]
[White "Gschiel, Alexander"]
[Black "Goroshkova, Liudmila"]
[Result "1-0"]
[ECO "E07"]
[WhiteElo "2196"]
[BlackElo "1961"]
[Annotator "ChessBase"]
[PlyCount "120"]
[EventDate "2022.09.16"]
[EventType "swiss"]
[EventCountry "SLO"]
[SourceTitle "playchess.com"]
[Source "ChessBase"]
[SourceQuality "1"]
[TimeControl "5400+30"]

1. d4 {[%emt 0:00:04]} d5 {[%emt 0:01:24]} 2. c4 {[%emt 0:00:11]} e6 {[%emt 0:00:09]} 3. Nf3 {[%emt 0:00:10]} Nf6 {[%emt 0:00:43]} 4. g3 {[%emt 0:00:26]} Be7 {[%emt 0:02:43]} 5. Bg2 {[%emt 0:00:15]} O-O {[%emt 0:00:24]} 6. O-O {[%emt 0:00:05]} c6 {[%emt 0:00:14]} 7. Nc3 {[%emt 0:01:33]} Nbd7 {[%emt 0:03:15]} 8. Qd3 {[%emt 0:06:30]} Re8 {[%emt 0:09:06]} 9. e4 {[%emt 0:04:45]} dxc4 {[%emt 0:19:27]} 10. Qxc4 {[%emt 0:01:30]} Nf8 {[%emt 0:01:25]} 11. Rd1 {[%emt 0:07:04]} b5 {[%emt 0:07:38]} 12. Qe2 {[%emt 0:25:13]} b4 {[%emt 0:04:03]} 13. Na4 {[%emt 0:01:26]} Qa5 {[%emt 0:00:49]} 14. b3 {[%emt 0:00:19]} Ba6 {[%emt 0:01:01]} 15. Qc2 {[%emt 0:00:21]} Qh5 {[%emt 0:05:05]} 16. h3 {[%emt 0:03:46]} N6d7 {[%emt 0:11:21]} 17. Be3 {[%emt 0:07:44]} Rac8 {[%emt 0:07:46]} 18. Nc5 {[%emt 0:05:34]} Bb5 {[%emt 0:03:47]} 19. a4 {[%emt 0:02:33]} bxa3 {[%emt 0:01:57]} 20. Rxa3 {[%emt 0:00:01]} a6 {[%emt 0:01:36]} 21. b4 {[%emt 0:01:40]} e5 {[%emt 0:02:26]} 22. d5 {[%emt 0:10:53]} cxd5 {[%emt 0:02:40]} 23. exd5 {[%emt 0:02:37]} e4 {[%emt 0:00:00]} 24. Ne1 {[%emt 0:05:18]} Nxc5 {[%emt 0:01:19]} 25. g4 {[%emt 0:00:37]} Ba4 {[%emt 0:07:08]} 26. gxh5 {[%emt 0:02:49]} Bxc2 {[%emt 0:00:08]} 27. Nxc2 {[%emt 0:00:08]} Nd3 {[%emt 0:02:21]} 28. Bxe4 {[%emt 0:01:02]} Nxb4 {[%emt 0:00:20]} 29. d6 {[%emt 0:05:04]} Bxd6 {[%emt 0:00:33]} 30. Rxd6 {[%emt 0:00:57]} Rxe4 {[%emt 0:01:16]} 31. Nd4 {[%emt 0:01:20]} Ne6 {[%emt 0:01:01]} 32. Nf5 {[%emt 0:00:32]} Re8 {[%emt 0:02:34]} 33. Rd7 {[%emt 0:00:42]} Nf8 {[%emt 0:00:07]} 34. Rb7 {[%emt 0:00:19]} Nc2 {[%emt 0:01:01]} 35. Rxa6 {[%emt 0:02:28]} Nxe3 {[%emt 0:00:02]} 36. fxe3 {[%emt 0:00:12]} R4e5 {[%emt 0:00:18]} 37. Nd6 {[%emt 0:00:21]} Rd8 {[%emt 0:01:07]} 38. Nxf7 {[%emt 0:00:46]} Rd1+ {[%emt 0:00:01]} 39. Kf2 {[%emt 0:00:30]} Rf5+ {[%emt 0:00:40]} 40. Ke2 {[%emt 0:00:05]} Rg1 {[%emt 0:00:49]} 41. Nd6 {[%emt 0:00:26]} Rg2+ {[%emt 0:00:30]} 42. Kd3 {[%emt 0:00:48]} Rxh5 {[%emt 0:00:26]} 43. Ne4 {[%emt 0:00:14]} Rxh3 {[%emt 0:00:36]} 44. Ra8 {[%emt 0:00:25]} Rf3 {[%emt 0:00:17]} 45. Rbb8 {[%emt 0:00:22]} h5 {[%emt 0:00:12]} 46. Nc5 {[%emt 0:01:59]} Rgf2 {[%emt 0:00:56]} 47. Ne6 {[%emt 0:00:41]} Rf6 {[%emt 0:00:19]} 48. Nf4 {[%emt 0:00:22]} h4 {[%emt 0:00:47]} 49. Rb7 {[%emt 0:00:03]} R2xf4 {[%emt 0:00:28]} 50. exf4 {[%emt 0:00:07]} Rxf4 {[%emt 0:00:02]} 51. Ke3 {[%emt 0:00:29]} Rf6 {[%emt 0:00:03]} 52. Rb4 {[%emt 0:00:20]} g5 {[%emt 0:00:16]} 53. Rb5 {[%emt 0:00:54]} Rg6 {[%emt 0:00:37]} 54. Kf3 {[%emt 0:00:01]} g4+ {[%emt 0:00:25]} 55. Kg2 {[%emt 0:00:04]} Kg7 {[%emt 0:01:32]} 56. Rb7+ {[%emt 0:00:28]} Kg8 {[%emt 0:00:03]} 57. Rbb8 {[%emt 0:00:16]} Rf6 {[%emt 0:00:13]} 58. Rb4 {[%emt 0:00:07]} h3+ {[%emt 0:01:17]} 59. Kg3 {[%emt 0:00:23]} Rg6 {[%emt 0:00:31]} 60. Rf4 {[%emt 0:00:08]} h2 {[%emt 0:00:32]} 1-0

[Event "26th Hit Open-A 2022"]
[Site "Nova Gorica"]
[Date "2022.09.19"]
[Round "6.31"]
[White "Zlatanovic, Marcus"]
[Black "Marchesich, Giovanni"]
[Result "1/2-1/2"]
[ECO "B12"]
[WhiteElo "1636"]
[BlackElo "2189"]
[Annotator "ChessBase"]
[PlyCount "26"]
[EventDate "2022.09.16"]
[EventType "swiss"]
[EventCountry "SLO"]
[SourceTitle "playchess.com"]
[Source "ChessBase"]
[SourceQuality "1"]
[TimeControl "5400+30"]

1. e4 {[%emt 0:00:03]} c6 {[%emt 0:00:16]} 2. d4 {[%emt 0:00:04]} d5 {[%emt 0:00:08]} 3. e5 {[%emt 0:00:05]} Bf5 {[%emt 0:00:21]} 4. h4 {[%emt 0:00:14]} c5 {[%emt 0:00:35]} 5. dxc5 {[%emt 0:03:25]} Nc6 {[%emt 0:00:30]} 6. a3 {[%emt 0:00:25]} Nxe5 {[%emt 0:10:08]} 7. b4 {[%emt 0:00:20]} h5 {[%emt 0:10:49]} 8. Bb2 {[%emt 0:00:37]} Ng6 {[%emt 0:01:12]} 9. Nf3 {[%emt 0:02:59]} a6 {[%emt 0:03:37]} 10. Nc3 {[%emt 0:01:46]} e6 {[%emt 0:02:48]} 11. Na4 {[%emt 0:02:35]} Bg4 {[%emt 0:02:42]} 12. Nb6 {[%emt 0:02:20]} Bxf3 {[%emt 0:01:11]} 13. Qxf3 {[%emt 0:00:10]} Rb8 {[%emt 0:00:44]} 1/2-1/2

[Event "26th Hit Open-A 2022"]
[Site "Nova Gorica"]
[Date "2022.09.19"]
[Round "6.32"]
[White "Thuesen, Mogens"]
[Black "Charaus, Florian"]
[Result "0-1"]
[ECO "B10"]
[WhiteElo "2242"]
[BlackElo "1993"]
[Annotator "RC"]
[PlyCount "132"]
[EventDate "2022.09.16"]
[EventType "swiss"]
[EventCountry "SLO"]
[SourceTitle "playchess.com"]
[Source "ChessBase"]
[SourceQuality "1"]
[TimeControl "5400+30"]

1. e4 {[%emt 0:00:03]} c6 {[%emt 0:03:28]} 2. c4 {[%emt 0:00:34]} d5 {[%emt 0:00:04]} 3. exd5 {[%emt 0:00:06]} cxd5 {[%emt 0:00:04]} 4. cxd5 {[%emt 0:00:06]} Nf6 {[%emt 0:00:02]} 5. Nc3 {[%emt 0:00:16]} g6 {[%emt 0:00:08]} 6. Bb5+ {[%emt 0:02:08]} Bd7 {[%emt 0:00:42]} 7. Qb3 {[%emt 0:02:51]} Bg7 {[%emt 0:00:45]} 8. Bxd7+ {[%emt 0:04:47]} Qxd7 {[%emt 0:02:59]} 9. Nf3 {[%emt 0:00:07]} O-O {[%emt 0:00:19]} 10. O-O {[%emt 0:00:06]} Na6 {[%emt 0:01:11]} 11. d4 {[%emt 0:00:19]} b5 {[%emt 0:10:24]} 12. Ne5 {[%emt 0:07:00]} Qb7 {[%emt 0:00:25]} 13. Bg5 {[%emt 0:09:22]} Nc7 {[%emt 0:07:04]} 14. d6 {[%emt 0:10:12]} Ne6 {[%emt 0:05:10]} 15. dxe7 {[%emt 0:02:04]} Qxe7 {[%emt 0:01:28]} 16. Nd5 {[%emt 0:15:17]} Qd6 {[%emt 0:02:26]} 17. Bxf6 {[%emt 0:11:23]} Nxd4 {[%emt 0:03:10]} 18. Ne7+ {[%emt 0:00:20]} Kh8 {[%emt 0:04:55]} 19. Nxf7+ {[%emt 0:09:11]} Rxf7 {[%emt 0:00:05]} 20. Qxf7 {[%emt 0:00:05]} Bxf6 {[%emt 0:00:33]} 21. Rfe1 {[%emt 0:01:16]} Bg7 {[%emt 0:05:17]} 22. Rad1 {[%emt 0:02:33]} Rf8 {[%emt 0:03:35]} 23. Qd5 {[%emt 0:00:11]} Qf4 {[%emt 0:03:06]} 24. f3 {[%emt 0:00:41]} Qf6 {[%emt 0:06:09]} 25. Re4 {[%emt 0:01:42]} Nc2 {[%emt 0:08:48]} 26. Qc5 {[%emt 0:03:05]} Qxb2 {[%emt 0:01:27]} 27. Nxg6+ {[%emt 0:00:35]} hxg6 {[%emt 0:00:05]} 28. Rh4+ {[%emt 0:00:06]} Kg8 {[%emt 0:00:04]} 29. Qd5+ {[%emt 0:01:43]} Rf7 {[%emt 0:03:21]} 30. Qe6 {[%emt 0:05:52]} Qf6 {[%emt 0:02:44]} 31. Qe8+ {[%emt 0:00:00]} Rf8 {[%emt 0:01:09]} 32. Qe4 {[%emt 0:00:00]} Qb6+ {[%emt 0:00:09]} 33. Kh1 {[%emt 0:00:00]} Ne3 {[%emt 0:03:28]} 34. Re1 {[%emt 0:02:35]} Nf5 {[%emt 0:01:45]} 35. Qd5+ {[%emt 0:00:17]} Rf7 {[%emt 0:00:19]} 36. Rhe4 {[%emt 0:01:00]} Qf6 {[%emt 0:09:25]} 37. Qxb5 {[%emt 0:01:12]} Qg5 {[%emt 0:00:07]} 38. Qb8+ {[%emt 0:00:25]} Bf8 {[%emt 0:01:10]} 39. Rg4 {[%emt 0:00:31]} Qh6 {[%emt 0:03:23]} 40. Qb3 {[%emt 0:01:33]} Bd6 {[%emt 0:02:32]} 41. Re8+ {[%emt 0:04:17]} Kg7 {[%emt 0:00:13]} 42. Qc3+ {[%emt 0:00:04]} Rf6 {[%emt 0:00:11]} 43. h3 {[%emt 0:00:59]} Ng3+ {[%emt 0:01:47]} 44. Kg1 {[%emt 0:00:06]} Kf7 {[%emt 0:00:51]} 45. Qc8 {[%emt 0:01:26]} Nf5 {[%emt 0:01:59]} 46. Re1 {[%emt 0:03:02]} Ne7 {[%emt 0:00:51]} 47. Qc4+ {[%emt 0:00:21]} Kg7 {[%emt 0:00:37]} 48. Rd4 {[%emt 0:00:41]} Qg5 {[%emt 0:00:44]} 49. Rg4 {[%emt 0:01:28]} Qc5+ {[%emt 0:00:54]} 50. Qxc5 {[%emt 0:00:41]} Bxc5+ {[%emt 0:00:03]} 51. Kf1 {[%emt 0:00:29]} Nf5 {[%emt 0:00:14]} 52. Ke2 {[%emt 0:00:46]} Ra6 {[%emt 0:00:59]} 53. a4 {[%emt 0:00:22]} Bd4 {[%emt 0:01:53]} 54. Kd3 {[%emt 0:00:30]} Rxa4 {[%emt 0:00:14]} 55. Re6 {[%emt 0:00:16]} Ra3+ {[%emt 0:00:25]} 56. Kd2 {[%emt 0:00:38]} Ra2+ {[%emt 0:01:07]} 57. Kc1 {[%emt 0:00:15]} Bf6 {[%emt 0:01:03]} 58. g3 {[%emt 0:00:43]} a5 {[%emt 0:01:16]} 59. Rc4 {[%emt 0:00:32]} Ra1+ {[%emt 0:00:22]} 60. Kd2 {[%emt 0:00:22]} Ra2+ {[%emt 0:00:21]} 61. Ke1 {[%emt 0:00:46]} Ra1+ {[%emt 0:00:12]} 62. Kd2 {[%emt 0:00:14]} Ra2+ {[%emt 0:00:09]} 63. Kc1 {[%emt 0:00:11]} Ra1+ {[%emt 0:00:10]} 64. Kc2 {[%emt 0:00:26]} Kf7 {[%emt 0:00:31]} 65. Rcc6 {[%emt 0:00:45]} Nd4+ {[%emt 0:00:08]} 66. Kb2 {[%emt 0:00:57]} Nxe6+ {[%emt 0:00:05]} 0-1

[Event "26th Hit Open-A 2022"]
[Site "Nova Gorica"]
[Date "2022.09.19"]
[Round "6.33"]
[White "Di Lascio, Savino"]
[Black "Beliavsky, Alexander G"]
[Result "0-1"]
[ECO "A07"]
[WhiteElo "1793"]
[BlackElo "2505"]
[Annotator "TA"]
[PlyCount "84"]
[EventDate "2022.09.16"]
[EventType "swiss"]
[EventCountry "SLO"]
[SourceTitle "playchess.com"]
[Source "ChessBase"]
[SourceQuality "1"]
[TimeControl "5400+30"]

{[%evp 11,84,0,0,-20,-9,-20,-14,-21,-23,-18,0,-38,-16,-41,-44,-42,-23,-61,-55,-59,-70,-62,-47,-50,-53,-80,-71,-82,-84,-68,-66,-160,-154,-180,-150,-195,-195,-195,-195,-195,-202,-195,-195,-195,-187,-205,-207,-233,-224,-225,-220,-287,-281,-664,-643,-1064,-1053,-1028,-1028,-1031,-921,-1183,-553,-2000,-1865,-29947,-6002,-5698,-5289,-29984,-29985,-29988,-29989,-29988,-29989]} 1. Nf3 {[%emt 0:00:04]} d5 {[%emt 0:00:20]} 2. g3 {[%emt 0:00:15]} g6 {[%emt 0:00:21]} 3. Bg2 {[%emt 0:00:27]} Bg7 {[%emt 0:00:12]} 4. O-O {[%emt 0:00:14]} e5 {[%emt 0:00:14]} 5. d3 {[%emt 0:00:19]} Ne7 {[%emt 0:00:08]} 6. Nbd2 {[%emt 0:00:21]} O-O {[%emt 0:00:39]} 7. c4 {[%emt 0:00:13] CPLX 2.0 20 (c2-c3) (=20). A07: Réti Opening: New York and Capablanca Systems.} Nbc6 {[%emt 0:01:07] CPLX 2.2 11 (c7-c6) (=6)} 8. a3 {[%emt 0:00:39] CPLX 2.2 11 (c4xd5) (=16)} a5 {[%emt 0:01:59] CPLX 2.2 6 (d5xc4) (=6)} 9. Rb1 {[%emt 0:01:25] CPLX 2.2 7 (c4xd5) (=13). The position is equal.} dxc4 {[%emt 0:06:39] BESTDEEP} 10. Nxc4 {[%emt 0:00:28] RECAPT} Be6 {[%emt 0:02:39] [#] CPLX 2.3 18 (Bc8-f5) (=7)} 11. Qa4 $146 {[%emt 0:03:07] CPLX 2.4 38 (b2-b4) (=15)} ({Predecessor:} 11. Qc2 a4 12. Bg5 h6 13. Bd2 Qd7 14. Rfc1 Kh7 15. b4 axb3 16. Rxb3 Ra7 17. Rbb1 {1-0 (44) Javakhadze,Z (2454)-Gharibyan,M (2433) Chess.com INT 2020}) 11... Qc8 {[%emt 0:04:20] CPLX 2.5 22 (Qd8-d7) (=10)} 12. Bg5 {[%emt 0:01:43] CPLX 2.5 25 (Rf1-e1) (=17)} Nf5 {[%emt 0:01:37] BESTDEEP} 13. Be3 {[%emt 0:00:55] BESTDEEP} Rb8 {[%emt 0:06:23] Strongly threatening ...b5. CPLX 2.7 19 (Qc8-b8) (=10)} 14. Qb5 {[%emt 0:04:35] CPLX 2.7 38 (Qa4-c2) (=17)} Bd7 {[%emt 0:01:54][%cal Oa5a4] BESTDEEP} 15. Qb3 {[%emt 0:01:01] BESTDEEP} a4 {[%emt 0:05:55] CPLX 2.5 0 (b7-b5) (=8)} 16. Qc2 {[%emt 0:02:20] BESTDEEP} Re8 {[%emt 0:00:40] CPLX 2.6 15 (b7-b5) (=8)} 17. b4 {[%emt 0:02:51] CPLX 2.6 3 (b2-b3) (=13)} axb3 {[%emt 0:03:11] BESTDEEP} 18. Rxb3 {[%emt 0:02:52] CPLX 3.4 27 (Qc2xb3) (=14)} Ncd4 $36 {[%emt 0:04:29][%mdl 2048] Black has strong initiative. CPLX 2.6} 19. Bxd4 {[%emt 0:00:21] CPLX 3.6} exd4 {[%emt 0:00:08] RECAPT} 20. Rbb1 {[%emt 0:06:20] CPLX 2.4 0 (Rb3-b2) (=12)} b5 {[%emt 0:11:03] Against a4. CPLX 2.4} 21. Na5 {[%emt 0:03:20] [#] Black continues to play with concentration. CPLX 2.5 94 (Nc4-d2) (=18)} ({White should play} 21. Ncd2 $15) 21... c5 $1 $17 {[%emt 0:00:25][%cal Oc5c4] CPLX 2.3=>BLUNDERREACT} 22. Ng5 {[%emt 0:03:14][%cal Oa3a4] CPLX 2.3 26 (Rf1-c1) (=18)} Qd8 {[%emt 0:01:03] CPLX 3.2 30 (Nf5-d6) (=7)} 23. Nc6 {[%emt 0:01:35] CPLX 3.7 45 (Bg2-c6) (=20)} Qxg5 {[%emt 0:01:32] CPLX 4.2} 24. Nxb8 {[%emt 0:01:03] EASY} Rxb8 {[%emt 0:00:04] RECAPT} 25. Qxc5 {[%emt 0:00:27] EASY} Rc8 {[%emt 0:00:59] CPLX 3.8} 26. Qa7 {[%emt 0:01:57] CPLX 4.1 0 (Qc5-b6) (=17)} Be8 {[%emt 0:01:20] CPLX 3.7 0 (Qg5-d8) (=6)} 27. Qa6 {[%emt 0:08:19] BESTDEEP} Qd8 {[%emt 0:04:03] BESTDEEP} 28. Rbc1 {[%emt 0:01:42] CPLX 3.4 18 (Bg2-e4) (=16)} Rc3 {[%emt 0:00:55] CPLX 3.6} 29. Rb1 {[%emt 0:04:53] CPLX 3.6 26 (Rc1-a1) (=16)} Bf8 {[%emt 0:01:25] BESTDEEP} 30. Ra1 {[%emt 0:01:36] CPLX 3.6 1 (Rb1xb5) (=16)} Ng7 {[%emt 0:00:24][%cal Bf5g7,Bg7e6,Be6d4,Bd4e2][%mdl 32] CPLX 3.4 5 (h7-h5) (=5)} 31. Rfc1 {[%emt 0:01:13] MISSDEEP-a3-a4 67 (a3-a4) (=18)} Ne6 {[%emt 0:01:07] Threatens to win with ...Nc5. CPLX 3.5} 32. Rxc3 {[%emt 0:01:16] CPLX 3.6 383 (Qa6-b7) (=32)} (32. Qb7) 32... dxc3 $19 {[%emt 0:00:04] RECAPT} 33. Bc6 {[%emt 0:00:53] CPLX 3.6 400 (e2-e3) (=46)} Nd4 {[%emt 0:01:54] EASY} 34. Bxe8 {[%emt 0:01:09] CPLX 4.1 0 (Bc6-e4) (=44)} Nxe2+ {[%emt 0:01:28][%mdl 64] Discovered Attack. CPLX 4.1} 35. Kf1 {[%emt 0:04:57] CPLX 3.5 3 (Kg1-g2) (=42)} Qxe8 {[%emt 0:00:05] EASY} 36. Qa5 {[%emt 0:00:43] CPLX 3.9 262 (a3-a4) (=50)} Bh6 {[%emt 0:02:21] CPLX 3.8 400 (c3-c2) (=17)} (36... c2 $142 37. Qe1 Qe5) 37. f4 {[%emt 0:05:15] RELBLUND 400 (Ra1-a2) (=61)} Qe3 {[%emt 0:01:55] CPLX 3.9=>BLUNDERREACT} 38. Qc7 {[%emt 0:07:57] RELBLUND 400 (Qa5-a8) (=72)} Qxd3 {[%emt 0:03:47] RELBLUND 400 (Qe3-f3) (=28)} (38... Qf3+ $142 39. Ke1 {[#]} Nc1 $1 {[%mdl 512]} 40. Rxc1 Qe3+ 41. Kf1 Qxc1+ 42. Kg2 Qd2+ 43. Kh3 c2 44. Qc8+ Bf8 45. a4 b4 46. Kg4 Qd1+ 47. Kh3 c1=Q 48. Qxc1 Qxc1 49. Kg2 b3 50. f5 gxf5 51. Kf3 Qf1+ 52. Ke3 b2 53. h3 b1=Q 54. Kd4 Qfxd3+ 55. Ke5 Qd6#) 39. Kf2 {[%emt 0:01:18] CPLX 6.1 0 (Kf1-g2) (=70)} Nd4 {[%emt 0:03:58] ( -> ...Qf3+). DEEPSTRONG} 40. Qc8+ {[%emt 0:04:50] MISS-Kf2-g1 400 (Kf2-g1) (=79)} Bf8 {[%emt 0:00:12] CPLX 5.4. Black mates.} 41. Qg4 {[%emt 0:00:21] RELBLUND 3 (Kf2-g2) (=77)} Qd2+ {[%emt 0:00:55] BESTDEEP} 42. Kg1 {[%emt 0:02:51] RELBLUND} c2 {[%emt 0:01:09] Weighted Error Value: White=0.87/Black=0.33} 0-1

[Event "26th Hit Open-A 2022"]
[Site "Nova Gorica"]
[Date "2022.09.19"]
[Round "6.34"]
[White "Ivsek, Cveto"]
[Black "Mostbauer, Florian"]
[Result "0-1"]
[ECO "D00"]
[WhiteElo "1763"]
[BlackElo "2295"]
[Annotator "TA"]
[PlyCount "84"]
[EventDate "2022.09.16"]
[EventType "swiss"]
[EventCountry "SLO"]
[SourceTitle "playchess.com"]
[Source "ChessBase"]
[SourceQuality "1"]
[TimeControl "5400+30"]

{[%evp 9,84,4,13,-3,0,-2,1,11,0,0,0,0,0,0,0,-9,-11,-10,0,0,68,62,93,89,90,84,80,46,44,44,57,43,59,82,87,68,133,116,138,112,194,178,186,189,181,0,0,0,-14,-14,-12,0,0,-2800,-1979,-3839,-2235,-29970,-29971,-29971,-29971,-29971,-29972,-29981,-29982,-29981,-29982,-29984,-29984,-29990,-29991,-29993,-29994,-29994,-29994,-29994,-29995]} 1. d4 {[%emt 0:00:06]} d5 {[%emt 0:00:09]} 2. Bf4 {[%emt 0:00:18]} Nf6 {[%emt 0:00:13]} 3. Nc3 {[%emt 0:01:10]} Bf5 {[%emt 0:02:21]} 4. e3 {[%emt 0:04:00]} e6 {[%emt 0:00:49]} 5. Bd3 {[%emt 0:05:23]} Bg6 {[%emt 0:02:08]} 6. Bxg6 {[%emt 0:04:21] D00: 1 d4 d5: Unusual lines.} hxg6 {[%emt 0:01:00]} 7. Nb5 $1 {[%emt 0:03:39]} Bd6 {[%emt 0:02:11]} 8. Nxd6+ {[%emt 0:09:53] The position is equal.} cxd6 {[%emt 0:00:11] [#]} 9. c3 $146 {[%emt 0:00:48]} ({Predecessor:} 9. Qd3 O-O 10. Nf3 Nc6 11. O-O Re8 12. Rfe1 e5 13. dxe5 dxe5 14. Bxe5 Nxe5 15. Qd4 Nxf3+ 16. gxf3 {½-½ (51) Steven,J (930)-Evers,A Rotenburg/Wuemme 2006}) 9... Nc6 {[%emt 0:01:07]} 10. Nf3 {[%emt 0:07:34]} Ne4 {[%emt 0:11:32]} 11. Nd2 {[%emt 0:14:24]} g5 {[%emt 0:00:19]} 12. Bg3 {[%emt 0:02:59]} Nxg3 {[%emt 0:05:39]} 13. fxg3 {[%emt 0:00:11]} f5 {[%emt 0:00:42]} 14. g4 {[%emt 0:05:58]} f4 {[%emt 0:04:24]} (14... g6 $11) 15. Qf3 {[%emt 0:06:41]} O-O {[%emt 0:02:13]} 16. O-O {[%emt 0:08:22]} Qb6 {[%emt 0:04:25]} 17. b3 {[%emt 0:00:51]} Rae8 {[%emt 0:01:53][%cal Oc6e5]} 18. Kh1 {[%emt 0:04:03]} (18. Qh3 {looks sharper.} Nd8 19. exf4 Rxf4 20. Qh5) 18... Qa5 {[%emt 0:06:45]} 19. b4 {[%emt 0:09:39]} Qc7 {[%emt 0:11:09]} 20. e4 {[%emt 0:00:11]} Qf7 {[%emt 0:00:05]} 21. exd5 {[%emt 0:00:38]} exd5 {[%emt 0:00:07]} 22. Rae1 {[%emt 0:00:24]} Nb8 {[%emt 0:00:06] [#]} ({Black should try} 22... g6 $14) 23. Qd3 $1 $16 {[%emt 0:01:06] Hoping for Nf3.} Nd7 {[%emt 0:07:18] [#]} 24. Nf3 $1 {[%emt 0:00:17]} Rxe1 {[%emt 0:00:10]} (24... Re3 $16 {is a better defense.} 25. Rxe3 fxe3) 25. Rxe1 $18 {[%emt 0:00:08]} Nf6 {[%emt 0:03:08]} 26. Nxg5 {[%emt 0:01:13]} Re8 {[%emt 0:00:07]} 27. Rxe8+ {[%emt 0:00:57]} (27. Re2 $18 Rxe2 28. Qxe2) 27... Qxe8 {[%emt 0:00:06][%mdl 4096] Endgame KQN-KQN} 28. h3 {[%emt 0:05:54] aiming for Qd2.} Ne4 {[%emt 0:07:22] Prevents Qd2.} 29. Nxe4 {[%emt 0:00:00]} dxe4 $11 {[%emt 0:00:06][%cal Bd5e4,Be4e3,Be3e2][%mdl 32] KQ-KQ} 30. Qc4+ {[%emt 0:00:00]} Kh7 {[%emt 0:00:11]} 31. Qd5 $2 {[%emt 0:00:00][%mdl 8192]} (31. Kg1 $11) 31... e3 $19 {[%emt 0:00:23] ...e2 is the strong threat.} 32. Qf5+ {[%emt 0:00:32]} g6 {[%emt 0:00:15]} 33. Qb1 {[%emt 0:00:40]} e2 {[%emt 0:00:52] Black mates.} 34. Qe1 {[%emt 0:00:11]} b5 {[%emt 0:01:05][%cal Bb7b5,Bb5c4,Bc4c3,Bc3c2][%mdl 32]} 35. a3 {[%emt 0:01:13]} Qe3 {[%emt 0:00:47]} 36. g5 {[%emt 0:03:44]} Kg7 {[%emt 0:00:19]} 37. h4 {[%emt 0:00:28]} Kg8 {[%emt 0:00:10]} 38. d5 {[%emt 0:00:30]} a6 {[%emt 0:01:33]} 39. c4 {[%emt 0:01:00]} bxc4 {[%emt 0:00:12]} 40. a4 {[%emt 0:00:07]} c3 {[%emt 0:00:10]} 41. b5 {[%emt 0:00:07]} axb5 {[%emt 0:00:10]} 42. axb5 {[%emt 0:00:01]} c2 {[%emt 0:00:20] Weighted Error Value: White=0.52/Black=0.12 (very precise)} 0-1